bitfinex/quotes_ETHUSD_20230113
["timestamp","ask_amount","ask_price","bid_price","bid_amount"]
[1673651320047,2.16965938,1455.3,1455.0,1.0267317]
[1673651320048,9.04110938,1455.3,1455.0,1.0267317]
[1673651320257,9.10710938,1455.3,1455.0,1.35861677]
[1673651320718,0.066,1455.3,1455.0,1.35861677]
[1673651320887,14.75961384,1455.4,1455.0,1.35861677]
[1673651320888,7.95465384,1455.4,1455.0,9.76749347]
[1673651321097,6.93696,1455.4,1455.1,1.3559562]
[1673651321957,8.93696,1455.4,1455.1,1.3559562]
[1673651322517,27.13040393,1455.4,1455.1,0.33188507]
[1673651322683,20.6157,1455.2,1454.9,1.09007113]
[1673651322891,20.6157,1455.2,1454.9,1.02407113]
[1673651322892,30.98743009,1455.2,1454.9,1.02407113]
[1673651323130,32.00512393,1455.2,1454.8,2.56017783]
[1673651323350,2.0,1455.1,1454.9,0.33213818]
[1673651323565,20.61855,1455.0,1454.8,1.02407113]
[1673651323734,20.61855,1455.0,1454.8,1.35621626]
[1673651323735,22.946405,1455.0,1454.8,1.35621626]
[1673651324288,22.946405,1455.0,1454.7,2.56017783]
[1673651324538,22.946405,1455.0,1454.7,2.89220592]
[1673651325457,3.43383009,1454.9,1454.6,2.62617783]
[1673651325704,21.98675301,1454.8,1454.7,0.28190525]
[1673651325870,22.05275301,1454.8,1454.6,1.02407113]
[1673651326084,22.05275301,1454.8,1454.6,1.3059832]
[1673651326294,22.05275301,1454.8,1454.5,2.07518566]
[1673651326507,22.05275301,1454.8,1454.6,0.28181339]
[1673651326508,2.2052753,1454.7,1454.6,0.28181339]
[1673651326746,9.0795353,1454.7,1454.6,0.28181339]
[1673651326972,9.1455353,1454.7,1454.6,0.28181339]
[1673651328099,9.1455353,1454.7,1454.5,3.82710575]
[1673651328314,9.1455353,1454.7,1454.6,0.28181339]
[1673651328779,16.0197953,1454.7,1454.5,2.00918566]
[1673651328995,16.0197953,1454.7,1454.5,0.98511453]
[1673651329189,16.0197953,1454.7,1454.5,2.00918566]
[1673651329380,16.0197953,1454.7,1454.5,0.98511453]
[1673651331258,16.0197953,1454.7,1454.5,0.94979746]
[1673651331578,16.0197953,1454.7,1454.5,0.10189838]
[1673651331789,8.47671953,1454.6,1454.5,0.10189838]
[1673651332036,15.41745953,1454.6,1454.5,0.38354059]
[1673651332259,22.29219953,1454.6,1454.5,0.10189838]
[1673651334726,25.72602962,1454.6,1454.5,0.10189838]
[1673651334932,27.72602962,1454.6,1454.5,0.10189838]
[1673651335562,25.72602962,1454.6,1454.5,0.10189838]
[1673651336205,18.85128962,1454.6,1454.5,0.10189838]
[1673651337031,8.54271953,1454.6,1454.5,0.10189838]
[1673651337244,0.066,1454.6,1454.5,0.10189838]
[1673651337505,10.0362,1454.8,1454.5,0.10189838]
[1673651337682,23.78414,1454.8,1454.5,0.10189838]
[1673651338083,0.066,1454.8,1454.5,0.10189838]
[1673651338402,16.56372156,1454.8,1454.5,0.10189838]
[1673651338615,16.62972156,1454.8,1454.5,0.10189838]
[1673651339506,2.88172156,1454.8,1454.5,0.10189838]
[1673651339693,37.21066,1454.9,1454.5,0.10189838]
[1673651339694,30.4029,1454.9,1454.5,0.10189838]
[1673651339902,33.83673009,1454.9,1454.5,6.97710838]
[1673651340114,33.83673009,1454.9,1454.5,7.04310838]
[1673651340340,47.1308731,1454.9,1454.5,0.16789838]
[1673651340561,47.1308731,1454.9,1454.5,0.10189838]
[1673651340562,54.0043431,1454.9,1454.5,0.10189838]
[1673651340772,47.1308731,1454.9,1454.5,0.10189838]
[1673651340998,54.0043431,1454.9,1454.5,0.10189838]
[1673651341634,2.0,1454.8,1454.5,0.10189838]
[1673651341825,24.7824544,1454.8,1454.5,0.10189838]
[1673651342046,31.7227144,1454.8,1454.5,0.10189838]
[1673651343370,3.43383009,1454.7,1454.5,0.10189838]
[1673651343577,6.87474,1454.6,1454.5,0.10189838]
[1673651343791,13.81548,1454.6,1454.5,0.10189838]
[1673651344053,9.35311601,1454.6,1454.5,0.10189838]
[1673651348023,2.47837601,1454.6,1454.5,0.10189838]
[1673651348235,3.49983009,1454.7,1454.5,0.10189838]
[1673651348448,6.87469,1454.7,1454.5,0.10189838]
[1673651348629,6.94069,1454.7,1454.5,0.10189838]
[1673651348842,13.81538,1454.7,1454.5,0.10189838]
[1673651349256,6.94069,1454.7,1454.5,0.10189838]
[1673651349466,0.066,1454.7,1454.5,0.10189838]
[1673651349678,12.47469431,1454.8,1454.5,0.10189838]
[1673651349679,12.54069431,1454.8,1454.5,0.10189838]
[1673651349887,17.24835009,1454.8,1454.5,0.10189838]
[1673651351470,24.12261009,1454.8,1454.5,0.10189838]
[1673651352142,17.24835009,1454.8,1454.5,0.10189838]
[1673651353265,13.74948,1454.6,1454.5,0.10189838]
[1673651353474,20.69022,1454.6,1454.5,0.10189838]
[1673651353721,21.62743066,1454.6,1454.5,0.10189838]
[1673651354761,14.75269066,1454.6,1454.5,0.10189838]
[1673651355350,7.87795066,1454.6,1454.5,0.10189838]
[1673651355610,21.62743066,1454.6,1454.5,0.10189838]
[1673651356512,14.75269066,1454.6,1454.5,0.10189838]
[1673651356932,13.81548,1454.6,1454.5,0.10189838]
[1673651357159,13.81548,1454.6,1454.5,0.37935436]
[1673651357560,13.81548,1454.6,1454.5,0.10189838]
[1673651358021,13.81548,1454.6,1454.5,0.37938085]
[1673651358809,20.69022,1454.6,1454.5,0.37938085]
[1673651358942,13.81548,1454.6,1454.5,0.37938085]
[1673651360678,6.94074,1454.6,1454.5,0.37938085]
[1673651361047,6.94074,1454.6,1454.5,1.40345198]
[1673651362237,6.94074,1454.6,1454.5,2.66207621]
[1673651362470,6.94074,1454.6,1454.5,2.93955868]
[1673651362874,9.35312001,1454.6,1454.5,2.93640426]
[1673651363263,16.22786001,1454.6,1454.5,2.93640426]
[1673651363533,16.22786001,1454.6,1454.5,1.40029756]
[1673651364106,23.10260001,1454.6,1454.5,2.93640426]
[1673651364356,23.10260001,1454.6,1454.5,1.40029756]
[1673651365498,23.10260001,1454.6,1454.5,2.93640426]
[1673651365687,23.10260001,1454.6,1454.5,1.40029756]
[1673651366668,23.10260001,1454.6,1454.5,2.93640426]
[1673651366878,23.10260001,1454.6,1454.5,45.38186626]
[1673651367098,23.10260001,1454.6,1454.5,46.29207004]
[1673651367482,23.10260001,1454.6,1454.5,44.75596334]
[1673651369251,23.66046186,1454.6,1454.5,44.75596334]
[1673651370382,21.24808185,1454.6,1454.5,44.75596334]
[1673651370723,21.24808185,1454.6,1454.5,43.73189221]
[1673651371015,21.24808185,1454.6,1454.5,45.26799891]
[1673651371229,21.24808185,1454.6,1454.5,46.29817201]
[1673651371439,21.24808185,1454.6,1454.5,45.26799891]
[1673651371876,21.24808185,1454.6,1454.5,46.2981954]
[1673651372324,21.24808185,1454.6,1454.5,45.26799891]
[1673651372747,14.37334185,1454.6,1454.5,45.26799891]
[1673651373118,21.7541707,1454.6,1454.5,46.29817277]
[1673651373956,1.1299507,1454.6,1454.5,46.29817277]
[1673651374176,1.0639507,1454.6,1454.5,47.31614118]
[1673651374390,1.0639507,1454.6,1454.5,54.19135118]
[1673651374799,1.0639507,1454.6,1454.5,52.65524448]
[1673651375265,1.0639507,1454.6,1454.5,59.53045448]
[1673651375969,1.0639507,1454.6,1454.5,52.65524448]
[1673651376176,1.0639507,1454.6,1454.5,45.78003448]
[1673651377034,1.0639507,1454.6,1454.5,48.34021231]
[1673651377475,1.0139507,1454.6,1454.5,45.78003448]
[1673651378057,0.54952851,1454.6,1454.5,45.78003448]
[1673651378524,0.54952851,1454.6,1454.5,52.65524448]
[1673651378896,0.54952851,1454.6,1454.5,55.21542231]
[1673651379307,0.54952851,1454.6,1454.5,66.91770004]
[1673651379523,0.54952851,1454.6,1454.5,55.22725156]
[1673651379953,7.42426851,1454.6,1454.5,45.79186373]
[1673651380173,1.63752851,1454.6,1454.5,47.33693939]
[1673651380362,8.44626851,1454.6,1454.5,47.33693939]
[1673651380604,1.63752851,1454.6,1454.5,47.33693939]
[1673651380784,1.63752851,1454.6,1454.5,45.79186373]
[1673651380785,0.54952851,1454.6,1454.5,45.79186373]
[1673651381248,21.17374851,1454.6,1454.5,45.79186373]
[1673651381463,21.23974851,1454.6,1454.5,45.79186373]
[1673651381675,7.49026851,1454.6,1454.5,47.33697487]
[1673651381838,14.36500851,1454.6,1454.5,47.33697487]
[1673651382050,21.23974851,1454.6,1454.5,47.33697487]
[1673651382263,7.49026851,1454.6,1454.5,47.33697487]
[1673651382520,14.36500851,1454.6,1454.5,47.33697487]
[1673651383093,14.36500851,1454.6,1454.5,46.30713598]
[1673651383531,14.36500851,1454.6,1454.5,44.76202484]
[1673651383947,14.36500851,1454.6,1454.5,46.30713598]
[1673651384490,7.49026851,1454.6,1454.5,44.76202484]
[1673651384920,14.36500851,1454.6,1454.5,44.76202484]
[1673651385244,21.23974851,1454.6,1454.5,44.76202484]
[1673651385849,22.05891961,1454.6,1454.5,44.76202484]
[1673651386055,22.05891961,1454.6,1454.5,43.73189221]
[1673651387165,22.05891961,1454.6,1454.5,44.76202484]
[1673651387666,21.23974851,1454.6,1454.5,44.76202484]
[1673651388355,14.36500851,1454.6,1454.5,44.76202484]
[1673651390608,14.36500851,1454.6,1454.5,45.27700335]
[1673651390609,0.61552851,1454.6,1454.5,45.27700335]
[1673651390823,0.54952851,1454.6,1454.5,52.66707373]
[1673651391133,0.54952851,1454.6,1454.5,47.33660813]
[1673651391294,0.54952851,1454.6,1454.5,46.30652939]
[1673651391720,7.42426851,1454.6,1454.5,46.30652939]
[1673651391987,0.61552851,1454.6,1454.5,46.30652939]
[1673651392135,0.54952851,1454.6,1454.5,46.30652939]
[1673651392352,0.54952851,1454.6,1454.5,45.27663661]
[1673651392606,21.17374851,1454.6,1454.5,46.30658599]
[1673651392771,21.23974851,1454.6,1454.5,46.30658599]
[1673651393333,21.23974851,1454.6,1454.5,45.27663661]
[1673651393656,7.49026851,1454.6,1454.5,44.76184429]
[1673651394960,7.44026851,1454.6,1454.5,44.76184429]
[1673651395225,0.56552851,1454.6,1454.5,45.27663661]
[1673651395439,0.49952851,1454.6,1454.5,47.33660813]
[1673651396452,0.49952851,1454.6,1454.5,45.27663661]
[1673651398024,0.49952851,1454.6,1454.5,46.3065641]
[1673651398667,0.49952851,1454.6,1454.5,45.27663661]
[1673651399001,0.49952851,1454.6,1454.5,47.33660813]
[1673651399178,0.49952851,1454.6,1454.5,47.36305116]
[1673651400010,0.49952851,1454.6,1454.5,45.81830676]
[1673651400224,0.49952851,1454.6,1454.5,45.81630676]
[1673651400478,0.49952851,1454.6,1454.5,47.36307064]
[1673651403303,0.49952851,1454.6,1454.5,45.30309912]
[1673651404588,7.37426851,1454.6,1454.5,45.30309912]
[1673651404798,7.44026851,1454.6,1454.5,45.30309912]
[1673651406185,7.44026851,1454.6,1454.5,46.33297473]
[1673651406338,7.44026851,1454.6,1454.5,47.36307064]
[1673651406548,0.56552851,1454.6,1454.5,45.30309912]
[1673651406766,0.49952851,1454.6,1454.5,45.30309912]
[1673651406995,0.49952851,1454.6,1454.5,47.36307064]
[1673651409019,0.49952851,1454.6,1454.5,59.56872676]
[1673651409321,32.9142346,1455.0,1454.6,0.28636678]
[1673651409322,30.436,1455.0,1454.6,0.28636678]
[1673651409534,0.066,1455.0,1454.8,2.57414342]
[1673651409688,47.4888946,1455.2,1454.8,2.85162589]
[1673651409893,4.19939316,1455.1,1454.9,0.27748247]
[1673651410126,4.19939316,1455.1,1454.8,1.02965737]
[1673651410330,4.19939316,1455.1,1454.8,1.64579467]
[1673651410331,11.07185316,1455.1,1454.8,1.64579467]
[1673651410582,11.13785316,1455.1,1454.8,1.64579467]
[1673651410751,12.155547,1455.1,1454.8,1.64579467]
[1673651410963,12.155547,1455.1,1454.8,0.52965737]
[1673651411202,12.155547,1455.1,1454.8,1.12518467]
[1673651411579,19.028007,1455.1,1454.8,1.12518467]
[1673651411911,1.9028007,1455.0,1454.7,1.54448605]
[1673651412130,7.28768767,1455.0,1454.7,2.13998896]
[1673651412326,7.35368767,1455.0,1454.7,2.13998896]
[1673651412542,7.35368767,1455.0,1454.8,0.59550291]
[1673651412753,7.35368767,1455.0,1454.6,25.42392135]
[1673651412961,7.35368767,1455.0,1454.7,0.59541988]
[1673651414254,7.35362767,1455.0,1454.7,0.59541988]
[1673651415401,14.22647767,1455.0,1454.7,0.59541988]
[1673651415730,22.11702151,1455.0,1454.7,0.59541988]
[1673651417055,14.22647767,1455.0,1454.6,5.32979123]
[1673651417268,0.48077767,1455.0,1454.7,15.40561311]
[1673651417480,0.41477767,1455.0,1454.8,0.59541988]
[1673651417712,0.41477767,1455.0,1454.8,7.46919988]
[1673651417879,0.41477767,1455.0,1454.9,0.59541988]
[1673651418096,13.74572,1455.0,1454.7,0.066]
[1673651418338,13.81172,1455.0,1454.8,0.59516158]
[1673651418579,23.05477138,1455.0,1454.6,4.80037135]
[1673651418739,20.68459,1455.0,1454.7,0.59517823]
[1673651420076,5.84786571,1454.9,1454.7,0.59517823]
[1673651420266,13.74758,1454.8,1454.6,0.28636678]
[1673651420444,13.81358,1454.8,1454.6,1.96583208]
[1673651420636,13.81358,1454.8,1454.6,1.37077079]
[1673651420850,16.15830121,1454.8,1454.6,1.37077079]
[1673651421692,16.15830121,1454.8,1454.6,0.28636678]
[1673651422297,16.15830121,1454.8,1454.6,1.96575151]
[1673651422474,16.15830121,1454.8,1454.6,1.37071897]
[1673651422681,0.066,1454.8,1454.6,2.39966141]
[1673651422876,38.68314571,1454.9,1454.6,2.99467873]
[1673651423086,6.8738,1454.8,1454.6,1.37071897]
[1673651423298,6.9398,1454.8,1454.6,1.37071897]
[1673651423476,11.49549457,1454.8,1454.6,1.37071897]
[1673651423689,28.67692466,1454.8,1454.6,0.28636678]
[1673651424136,1.54921787,1454.7,1454.6,0.28636678]
[1673651424469,22.17199787,1454.7,1454.6,0.28636678]
[1673651424660,22.23799787,1454.7,1454.6,0.28636678]
[1673651424849,25.36251951,1454.7,1454.6,0.28636678]
[1673651426133,18.98825951,1454.7,1454.6,0.28636678]
[1673651426463,25.86251951,1454.7,1454.6,0.28636678]
[1673651427270,29.2963496,1454.7,1454.6,0.28636678]
[1673651427461,22.4220896,1454.7,1454.6,0.28636678]
[1673651427884,4.10273951,1454.7,1454.6,0.28636678]
[1673651428096,0.91221787,1454.7,1454.6,0.28636678]
[1673651428626,0.91221787,1454.7,1454.6,0.81781098]
[1673651428851,0.91221787,1454.7,1454.6,1.85442156]
[1673651429405,0.91221787,1454.7,1454.6,2.883364]
[1673651430049,0.91221787,1454.7,1454.6,19.20770235]
[1673651430390,0.91221787,1454.7,1454.6,11.36831735]
[1673651430524,0.91221787,1454.7,1454.6,3.99357735]
[1673651430736,0.91221787,1454.7,1454.6,3.92757735]
[1673651431199,0.91221787,1454.7,1454.6,29.12482316]
[1673651431360,0.91221787,1454.7,1454.6,30.64844235]
[1673651431576,0.18233194,1454.7,1454.6,32.27979527]
[1673651431790,0.18233194,1454.7,1454.6,30.22048053]
[1673651432241,0.52543244,1454.7,1454.6,30.22048053]
[1673651432565,0.52543244,1454.7,1454.6,28.25048053]
[1673651432942,0.52543244,1454.7,1454.6,28.24848053]
[1673651433151,0.52543244,1454.7,1454.6,28.25048053]
[1673651434149,0.52543244,1454.7,1454.6,31.68431062]
[1673651435408,0.08769713,1454.7,1454.6,31.68431062]
[1673651435930,0.08769713,1454.7,1454.6,32.35574835]
[1673651436111,21.25083328,1455.2,1454.6,30.29988906]
[1673651436303,21.25083328,1455.2,1454.9,6.87328]
[1673651436514,21.25083328,1455.2,1454.9,0.066]
[1673651436722,21.25083328,1455.2,1454.9,6.87328]
[1673651436989,21.25083328,1455.2,1454.9,6.93928]
[1673651438964,0.36653328,1455.2,1454.9,10.1384955]
[1673651439137,0.36653328,1455.2,1455.0,1.02779591]
[1673651439138,0.30053328,1455.2,1455.0,1.02779591]
[1673651439345,0.30053328,1455.2,1455.1,28.51727591]
[1673651439598,0.30053328,1455.2,1455.1,28.58327591]
[1673651440047,0.33011676,1455.4,1455.1,27.55548]
[1673651440204,0.33011676,1455.4,1455.3,13.74286]
[1673651440416,0.33011676,1455.4,1455.3,13.80886]
[1673651440831,0.33011676,1455.4,1455.3,3.49983009]
[1673651441035,0.33011676,1455.4,1455.3,10.92717416]
[1673651441285,0.33011676,1455.4,1455.3,1.95524301]
[1673651441610,0.33011676,1455.4,1455.2,13.49836]
[1673651441771,0.33011676,1455.4,1455.2,16.93219009]
[1673651442193,0.33011676,1455.4,1455.2,6.6269]
[1673651442763,0.33011676,1455.4,1455.2,20.37021]
[1673651442970,0.33011676,1455.4,1455.2,13.80931]
[1673651443995,0.33011676,1455.4,1455.2,20.68121]
[1673651444236,0.33011676,1455.4,1455.2,23.9409126]
[1673651447493,0.33011676,1455.4,1455.2,0.066]
[1673651447687,0.33011676,1455.4,1455.0,24.9424]
[1673651447895,0.33011676,1455.4,1455.0,32.83008154]
[1673651448112,2.33011676,1455.4,1455.1,6.87233]
[1673651448302,2.33011676,1455.4,1455.1,6.93833]
[1673651448303,3.94387244,1455.4,1455.1,6.93833]
[1673651448526,3.94387244,1455.4,1455.1,13.8107]
[1673651448753,0.33011676,1455.4,1455.1,20.68307]
[1673651452593,0.33011676,1455.4,1455.1,22.28780558]
[1673651453165,0.33011676,1455.4,1455.1,22.72517064]
[1673651453382,0.33011676,1455.4,1455.2,0.50523951]
[1673651453550,0.33011676,1455.4,1455.3,20.61429]
[1673651453750,0.33011676,1455.4,1455.3,20.68029]
[1673651453961,0.33011676,1455.4,1455.3,13.80886]
[1673651454413,0.33011676,1455.4,1455.3,6.93743]
[1673651454744,18.64286685,1455.4,1455.3,0.066]
[1673651454920,18.64286685,1455.4,1455.0,11.8028]
[1673651454921,26.58457853,1455.4,1455.0,0.066]
[1673651455148,26.58457853,1455.4,1454.9,6.2865]
[1673651456767,6.872,1455.2,1454.9,6.2865]
[1673651456903,20.682,1455.2,1454.9,0.066]
[1673651457112,20.682,1455.2,1454.8,17.7874]
[1673651457113,15.81344,1455.1,1454.8,11.2741]
[1673651457354,15.87944,1455.1,1454.8,0.066]
[1673651457587,9.0068,1455.1,1454.7,16.7483]
[1673651457743,9.00418431,1455.1,1454.7,16.8143]
[1673651457959,2.13158431,1455.1,1454.7,24.71635591]
[1673651458163,9.355,1455.2,1454.8,0.50543661]
[1673651458393,9.355,1455.2,1454.9,13.74646]
[1673651458634,9.355,1455.2,1454.9,13.81246]
[1673651458812,9.355,1455.2,1454.9,6.93923]
[1673651460049,9.355,1455.2,1454.9,0.066]
[1673651460215,0.9355,1455.1,1454.8,13.81295]
[1673651460523,16.22698,1455.2,1454.8,13.81295]
[1673651460742,9.355,1455.2,1454.8,20.68674]
[1673651460964,16.22692,1455.2,1454.8,14.82736773]
[1673651461109,16.22692,1455.2,1454.8,8.23937]
[1673651461322,28.50336686,1455.2,1454.8,8.23937]
[1673651461956,21.63144686,1455.2,1454.8,8.23937]
[1673651462918,21.63144686,1455.2,1454.8,15.11316]
[1673651463475,14.75952686,1455.2,1454.8,21.98695]
[1673651463847,21.63152686,1455.2,1454.8,15.11316]
[1673651465055,2.0,1455.1,1454.8,15.11316]
[1673651466091,2.0,1455.1,1454.8,16.14095591]
[1673651466409,2.0,1455.1,1454.8,21.71474591]
[1673651466622,2.0,1455.1,1454.8,0.066]
[1673651466840,2.0,1455.1,1454.8,1.3]
[1673651466841,22.61717,1455.1,1454.8,1.3]
[1673651467011,22.68317,1455.1,1454.8,1.3]
[1673651467359,22.91384399,1455.1,1454.8,1.3]
[1673651467605,27.53871368,1455.1,1454.8,1.3]
[1673651467941,9.16904399,1455.1,1454.8,1.3]
[1673651468148,0.29667399,1455.1,1455.0,6.87285]
[1673651468414,0.23067399,1455.1,1455.0,21.19117047]
[1673651469058,0.23067399,1455.1,1455.0,22.49117047]
[1673651469240,0.23067399,1455.1,1455.0,26.7123234]
[1673651469677,0.23067399,1455.1,1455.0,31.25401726]
[1673651469904,0.23067399,1455.1,1455.0,20.85438981]
[1673651470208,0.23067399,1455.1,1455.0,1.87262047]
[1673651470365,0.23067399,1455.1,1455.0,1.80662047]
[1673651471520,11.67387408,1455.1,1455.0,1.3]
[1673651471759,11.73987408,1455.1,1455.0,1.3]
[1673651471988,2.6076614,1455.1,1455.0,1.3]
[1673651472198,2.5416614,1455.1,1455.0,1.3]
[1673651472569,9.4140314,1455.1,1455.0,1.3]
[1673651472782,16.3524014,1455.1,1455.0,1.3]
[1673651473246,18.99123826,1455.1,1455.0,1.3]
[1673651473465,5.24649826,1455.1,1455.0,1.3]
[1673651473768,4.07251085,1455.1,1455.0,1.3]
[1673651473981,4.00651085,1455.1,1455.0,1.3]
[1673651475860,28.05745094,1455.1,1455.0,1.3]
[1673651476187,28.12345094,1455.1,1455.0,1.3]
[1673651476394,30.12345094,1455.1,1455.0,1.3]
[1673651476605,33.92477042,1455.1,1455.0,1.3]
[1673651476818,31.92477042,1455.1,1455.0,1.3]
[1673651477674,31.92477042,1455.1,1454.6,2.10871232]
[1673651477675,20.62023,1454.9,1454.6,2.10871232]
[1673651477976,3.43383009,1454.8,1454.5,43.53925791]
[1673651478140,10.6514731,1454.7,1454.5,43.53925791]
[1673651478351,10.7174731,1454.7,1454.5,43.53925791]
[1673651478766,10.7174731,1454.7,1454.5,42.511462]
[1673651479223,1.36396322,1454.6,1454.5,42.511462]
[1673651479551,1.36396322,1454.6,1454.5,44.48105578]
[1673651480284,0.22696322,1454.6,1454.5,43.45325987]
[1673651480670,7.10170322,1454.6,1454.5,44.48105578]
[1673651480873,1.42996322,1454.6,1454.5,44.48105578]
[1673651481099,1.36396322,1454.6,1454.5,43.45325987]
[1673651481283,0.22696322,1454.6,1454.5,43.45325987]
[1673651482070,0.22696322,1454.6,1454.5,51.35626578]
[1673651482232,0.22696322,1454.6,1454.5,58.23147578]
[1673651482794,0.22696322,1454.6,1454.5,44.48105578]
[1673651483006,0.1989943,1454.6,1454.5,44.48105578]
[1673651483440,0.1989943,1454.6,1454.5,43.45325987]
[1673651483813,7.0737343,1454.6,1454.5,43.45325987]
[1673651484132,10.57356439,1454.6,1454.5,43.45325987]
[1673651484345,12.86243682,1454.6,1454.5,42.511462]
[1673651484753,19.73717682,1454.6,1454.5,42.511462]
[1673651485612,14.0144743,1454.6,1454.5,42.511462]
[1673651485822,14.0144743,1454.6,1454.5,43.44763558]
[1673651485823,0.2649943,1454.6,1454.5,43.44763558]
[1673651486172,0.1989943,1454.6,1454.5,43.44763558]
[1673651486405,0.1989943,1454.6,1454.5,50.32284558]
[1673651486600,0.1989943,1454.6,1454.5,57.19805558]
[1673651486915,0.1989943,1454.6,1454.5,43.44763558]
[1673651487104,0.76475804,1454.6,1454.5,50.32284558]
[1673651487278,0.76475804,1454.6,1454.5,58.22585149]
[1673651488160,0.76475804,1454.6,1454.5,44.47543149]
[1673651488594,0.76475804,1454.6,1454.5,43.44763558]
[1673651488749,7.63949804,1454.6,1454.5,43.44763558]
[1673651488960,7.70549804,1454.6,1454.5,43.44763558]
[1673651489428,21.45497804,1454.6,1454.5,42.511462]
[1673651489653,23.60047584,1454.6,1454.5,42.511462]
[1673651489810,27.03430593,1454.6,1454.5,42.511462]
[1673651490019,6.41008593,1454.6,1454.5,42.511462]
[1673651490589,11.13932813,1454.6,1454.5,42.511462]
[1673651492026,18.01406813,1454.6,1454.5,42.511462]
[1673651492559,24.88880813,1454.6,1454.5,42.511462]
[1673651493005,18.01406813,1454.6,1454.5,42.511462]
[1673651493326,11.13932813,1454.6,1454.5,42.511462]
[1673651493634,12.94070994,1454.6,1454.5,42.511462]
[1673651494847,6.06596994,1454.6,1454.5,42.511462]
[1673651495531,0.83075804,1454.6,1454.5,42.511462]
[1673651495723,0.76475804,1454.6,1454.5,42.511462]
[1673651496877,0.76475804,1454.6,1454.5,42.50899516]
[1673651497845,0.76475804,1454.6,1454.5,49.73384217]
[1673651498005,0.76475804,1454.6,1454.5,42.85863217]
[1673651498217,0.76475804,1454.6,1454.5,43.75784789]
[1673651498425,0.76475804,1454.6,1454.5,50.63305789]
[1673651499912,0.76475804,1454.6,1454.5,58.5360638]
[1673651500349,0.76475804,1454.6,1454.5,50.63305789]
[1673651500559,0.76475804,1454.6,1454.5,44.7856438]
[1673651500754,0.76475804,1454.6,1454.5,43.75784789]
[1673651501151,7.63949804,1454.6,1454.5,43.75784789]
[1673651501366,7.70549804,1454.6,1454.5,42.85863217]
[1673651501628,23.60041684,1454.6,1454.5,42.50899516]
[1673651504207,16.72567684,1454.6,1454.5,42.50899516]
[1673651504447,20.15950693,1454.6,1454.5,42.50899516]
[1673651505428,13.28476693,1454.6,1454.5,42.50899516]
[1673651505861,6.41002693,1454.6,1454.5,42.50899516]
[1673651506073,20.15950693,1454.6,1454.5,34.03392516]
[1673651506402,27.03424693,1454.6,1454.5,23.94000516]
[1673651506786,29.03424693,1454.6,1454.5,23.94000516]
[1673651507318,29.03424693,1454.6,1454.4,0.10367731]
[1673651507319,4.59075484,1454.5,1454.4,0.10367731]
[1673651507524,52.97587137,1454.5,1454.0,0.11077441]
[1673651507738,27.50464,1454.3,1454.0,0.11077441]
[1673651507981,27.5084,1454.1,1454.0,0.11077441]
[1673651508192,34.2884531,1454.1,1454.0,0.11077441]
[1673651508386,27.4253531,1454.1,1454.0,0.11077441]
[1673651508593,20.5482531,1454.1,1454.0,0.11077441]
[1673651508782,6.7940531,1454.1,1454.0,0.11077441]
[1673651509017,3.69449317,1454.1,1454.0,0.11077441]
[1673651509205,3.62849317,1454.1,1454.0,0.11077441]
[1673651509460,10.50559317,1454.1,1454.0,0.11077441]
[1673651509685,24.32579317,1454.1,1454.0,0.11077441]
[1673651510045,2.0,1454.0,1453.9,0.11251498]
[1673651510264,28.49911941,1454.0,1453.9,0.11251498]
[1673651510469,28.56511941,1454.0,1453.9,0.11251498]
[1673651510733,28.56511941,1454.0,1453.9,4.98e-06]
[1673651510734,26.56511941,1454.0,1453.9,4.98e-06]
[1673651510891,0.066,1454.0,1453.9,4.98e-06]
[1673651511104,7.07176308,1454.1,1453.9,4.98e-06]
[1673651511105,14.01527308,1454.1,1453.9,4.98e-06]
[1673651511315,0.26066308,1454.1,1453.9,4.98e-06]
[1673651511524,0.19466308,1454.1,1453.9,0.34948596]
[1673651511787,0.19466308,1454.1,1453.9,1.88072664]
[1673651511962,0.19466308,1454.1,1453.9,3.53124566]
[1673651512810,0.19466308,1454.1,1454.0,0.34932921]
[1673651513015,0.066,1454.2,1454.0,0.34932921]
[1673651513016,0.19392011,1454.2,1454.0,2.34932921]
[1673651513274,0.19392011,1454.2,1454.0,17.14038008]
[1673651513485,0.19392011,1454.2,1454.0,17.20638008]
[1673651514066,0.19392011,1454.2,1454.0,3.45124008]
[1673651514322,0.19392011,1454.2,1454.0,3.38524008]
[1673651514512,0.19392011,1454.2,1454.0,1.38524008]
[1673651514820,17.3810202,1454.2,1453.9,3.92504157]
[1673651515026,17.3810202,1454.2,1454.0,0.341877]
[1673651515027,24.3236602,1454.2,1454.0,0.341877]
[1673651515241,24.3236602,1454.2,1453.9,1.30000498]
[1673651516637,3.43383009,1454.1,1453.9,1.30000498]
[1673651516827,3.7772131,1454.0,1453.9,1.30000498]
[1673651517163,31.2874931,1454.0,1453.9,1.30000498]
[1673651517481,37.66168576,1454.0,1453.9,1.30000498]
[1673651517859,37.66168576,1454.0,1453.9,4.98e-06]
[1673651517860,31.3534931,1454.0,1453.9,4.98e-06]
[1673651518071,17.5983531,1454.0,1453.9,4.98e-06]
[1673651521028,17.79227321,1454.0,1453.9,4.98e-06]
[1673651521630,24.66984321,1454.0,1453.9,4.98e-06]
[1673651523840,17.79227321,1454.0,1453.9,4.98e-06]
[1673651524272,24.66984321,1454.0,1453.9,4.98e-06]
[1673651524486,30.97803587,1454.0,1453.9,4.98e-06]
[1673651525134,24.66984321,1454.0,1453.9,4.98e-06]
[1673651525897,17.79227321,1454.0,1453.9,4.98e-06]
[1673651526413,24.66984321,1454.0,1453.9,4.98e-06]
[1673651528091,26.66984321,1454.0,1453.9,4.98e-06]
[1673651529032,24.66984321,1454.0,1453.9,4.98e-06]
[1673651529636,30.97803587,1454.0,1453.9,4.98e-06]
[1673651529829,24.66984321,1454.0,1453.9,4.98e-06]
[1673651530412,55.77024321,1454.0,1453.9,4.98e-06]
[1673651530788,62.07843587,1454.0,1453.9,4.98e-06]
[1673651531038,55.77024321,1454.0,1453.9,4.98e-06]
[1673651531206,62.07843587,1454.0,1453.9,4.98e-06]
[1673651531431,65.07843587,1454.0,1453.9,4.98e-06]
[1673651531630,72.28243587,1454.0,1453.9,4.98e-06]
[1673651531843,72.28243587,1454.0,1453.8,0.11251498]
[1673651531844,1.14090503,1453.9,1453.8,0.11251498]
[1673651532082,38.35374969,1453.9,1453.8,0.11251498]
[1673651532270,32.11155703,1453.9,1453.8,0.11251498]
[1673651533028,32.30473407,1453.9,1453.8,0.11251498]
[1673651534035,25.46806216,1453.9,1453.8,0.11251498]
[1673651536029,2.0,1453.8,1453.7,7.06e-06]
[1673651536241,19.19087009,1453.8,1453.7,7.06e-06]
[1673651536479,26.13539009,1453.8,1453.7,7.06e-06]
[1673651536694,29.77014231,1453.8,1453.7,7.06e-06]
[1673651537075,29.96257617,1453.8,1453.7,7.06e-06]
[1673651537741,27.96257617,1453.8,1453.7,7.06e-06]